fUSD/lending_fUSD_20251229
["ID","MTS","AMOUNT","RATE_DAILY","PERIOD"]
[400008238,1767015040811,-847.0,0.00016246,2]
[400008239,1767015040820,-847.0,0.00016274,2]
[400008240,1767015040833,-847.0,0.00016301,2]
[400008241,1767015040842,-847.0,0.00016329,2]
[400008242,1767015040852,-847.0,0.00016356,2]
[400008243,1767015040861,-847.0,0.00016383,2]
[400008244,1767015040871,-847.0,0.00016411,2]
[400008245,1767015040880,-500.0,0.00016438,2]
[400008246,1767015040890,-562.16173837,0.00016438,2]
[400008247,1767015040901,-150.0,0.00016438,2]
[400008248,1767015040912,-847.0,0.00016438,2]
[400008249,1767015040922,-150.0,0.00016465,2]
[400008250,1767015040931,-847.0,0.00016466,2]
[400008251,1767015040940,-200.0,0.00016493,2]
[400008252,1767015040949,-847.0,0.00016493,2]
[400008253,1767015040959,-847.0,0.0001652,2]
[400008254,1767015040968,-1000.0,0.00016521,2]
[400008255,1767015040977,-847.0,0.00016548,2]
[400008256,1767015040987,-847.0,0.00016575,2]
[400008257,1767015040997,-847.0,0.00016603,2]
[400008258,1767015041007,-847.0,0.0001663,2]
[400008259,1767015041016,-847.0,0.00016657,2]
[400008260,1767015041025,-847.0,0.00016685,2]
[400008261,1767015041035,-869.89842056,0.00016712,2]
[400008262,1767015041044,-165.38,0.00016712,2]
[400008263,1767015041054,-1600.0,0.00016872,2]
[400008264,1767015041065,-1282.43425559,0.000169,2]
[400008265,1767015041075,-1349.93606665,0.000169,2]
[400008266,1767015041085,-179.69793141,0.000169,2]
[400008267,1767015041094,-178.99010621,0.000169,2]
[400008268,1767015041103,-1502.58689708,0.000169,2]
[400008269,1767015041112,-834.28232255,0.000169,2]
[400008270,1767015041122,-500.0,0.000169,2]
[400008271,1767015041131,-500.0,0.000169,2]
[400008272,1767015041140,-500.0,0.000169,2]
[400008273,1767015041150,-500.0,0.000169,2]
[400008274,1767015041159,-500.0,0.000169,2]
[400008275,1767015041169,-500.0,0.000169,2]
[400008276,1767015041178,-500.0,0.000169,2]
[400008277,1767015041187,-500.0,0.000169,2]
[400008278,1767015041197,-500.0,0.000169,2]
[400008279,1767015041206,-500.0,0.000169,2]
[400008280,1767015041216,-500.0,0.000169,2]
[400008281,1767015041226,-500.0,0.000169,2]
[400008282,1767015041236,-500.0,0.000169,2]
[400008283,1767015041246,-500.0,0.000169,2]
[400008284,1767015041255,-198.10586609,0.000169,2]
[400008285,1767015041264,-373.6485393,0.00016907,2]
[400008286,1767015041275,-250.0,0.00017,2]
[400008287,1767015041284,-2242275.29156712,0.00017,2]
[400008306,1767015043546,-354.14576544,0.00014719,2]
[400008307,1767015043555,-373.28905364,0.00017,2]
[400008308,1767015044275,-151.0,0.00015697,2]
[400008309,1767015044286,-1737.0,0.00017,2]
[400008355,1767015047158,-151.0,0.00015697,2]
[400008356,1767015047168,-3240.0,0.00016908,2]
[400008357,1767015047179,-4561.77,0.00017,2]
[400008358,1767015047189,-1354.6537082,0.00017,2]
[400008359,1767015047201,-1115.8401823,0.00017,2]
[400008360,1767015047217,-522.02000001,0.00017,2]
[400008361,1767015047231,-303.8,0.00017,2]
[400008362,1767015216411,3387.26,0.00030137,120]
[400008372,1767015513965,285.0,0.00030136,120]
[400008401,1767016231979,-217.4705855,0.00014385,2]
[400008402,1767016231990,-487.53,0.00014483,2]
[400008403,1767016232000,-500.0,0.00014483,2]
[400008404,1767016232013,-274.25897022,0.00014483,2]
[400008405,1767016232023,-212.24311501,0.00014483,2]
[400008406,1767016232032,-260.21402099,0.00014483,2]
[400008407,1767016232042,-500.0,0.00014483,2]
[400008408,1767016232051,-500.0,0.00014483,2]
[400008409,1767016232060,-500.0,0.00014483,2]
[400008410,1767016232069,-292.7342488,0.00014483,2]
[400008411,1767016232078,-500.0,0.00014483,2]
[400008412,1767016232087,-500.0,0.00014483,2]
[400008413,1767016232095,-257.36957998,0.00014483,2]
[400008414,1767016232104,-500.0,0.00014483,2]
[400008415,1767016232112,-500.0,0.00014483,2]
[400008416,1767016232121,-500.0,0.00014483,2]
[400008417,1767016232130,-500.0,0.00014483,2]
[400008418,1767016232139,-500.0,0.00014483,2]
[400008419,1767016232149,-500.0,0.00014483,2]
[400008421,1767016232162,-500.0,0.00014483,2]
[400008422,1767016232172,-500.0,0.00014483,2]
[400008423,1767016232182,-500.0,0.00014483,2]
[400008424,1767016232193,-500.0,0.00014483,2]
[400008425,1767016232202,-550.50668564,0.00014483,2]
[400008426,1767016232211,-500.0,0.00014483,2]
[400008428,1767016232221,-500.0,0.00014483,2]
[400008430,1767016232230,-500.0,0.00014483,2]
[400008432,1767016232240,-500.0,0.00014483,2]
[400008434,1767016232250,-410.2886,0.00014484,2]
[400008436,1767016232259,-10907.63038479,0.00014484,2]
[400008438,1767016232274,-18421.69864954,0.00014484,2]
[400008441,1767016232289,-29642.96423106,0.00014484,2]
[400008447,1767016238029,-3275.40696767,0.00014484,2]
[400008448,1767016238040,-500.0,0.00014484,2]
[400008449,1767016238052,-140408.45886317,0.00014484,2]
[400008450,1767016238152,-359.7300006,0.00014484,2]
[400008451,1767016238163,-5668.55729199,0.00014484,2]
[400008452,1767016238174,-5742.80416384,0.00014484,2]
[400008453,1767016238185,-455.08116405,0.00014484,2]
[400008577,1767016240181,-488.97053013,0.00014484,2]
[400008578,1767016240192,-436.685,0.00014484,2]
[400008579,1767016240347,-783692.01275316,0.00014484,2]
[400008580,1767016240356,-5985.12245235,0.00014485,2]
[400008581,1767016240366,-166.66,0.00014515,2]
[400008582,1767016240375,-1189.47103799,0.00014519,2]
[400008583,1767016240386,-500.5,0.00014573,2]
[400008584,1767016240395,-500.0,0.00014573,2]
[400008585,1767016240404,-500.73448024,0.00014573,2]
[400008586,1767016240415,-209228.95812342,0.00014584,2]
[400008587,1767016240425,-500.0,0.00014585,2]
[400008588,1767016240434,-588.05577611,0.00014585,2]
[400008589,1767016240446,-500.0,0.00014585,2]
[400008590,1767016240457,-500.0,0.00014585,2]
[400008591,1767016240467,-500.0,0.00014585,2]
[400008592,1767016240476,-500.0,0.00014585,2]
[400008593,1767016240485,-500.0,0.00014585,2]
[400008594,1767016240495,-500.0,0.00014585,2]
[400008595,1767016240505,-500.0,0.00014585,2]
[400008596,1767016240516,-500.0,0.00014585,2]
[400008597,1767016240526,-500.0,0.00014585,2]
[400008598,1767016240537,-500.0,0.00014585,2]
[400008599,1767016240548,-500.0,0.00014585,2]
[400008600,1767016240558,-500.0,0.00014585,2]
[400008601,1767016240568,-500.0,0.00014585,2]
[400008602,1767016240579,-500.0,0.00014585,2]
[400008603,1767016240588,-500.0,0.00014585,2]
[400008604,1767016240598,-504.56873782,0.00014585,2]
[400008605,1767016240607,-500.0,0.00014585,2]
[400008606,1767016240616,-9999.99,0.00014585,2]
[400008607,1767016240625,-9999.99,0.00014585,2]
[400008608,1767016240635,-953.23,0.0001459,2]
[400008609,1767016240645,-150.99,0.00014619,2]
[400008610,1767016240656,-500.0,0.00014719,2]
[400008611,1767016240666,-500.0,0.00014719,2]
[400008612,1767016240677,-502.71583841,0.00014719,2]
[400008613,1767016240686,-500.0,0.00014719,2]
[400008614,1767016240695,-500.0,0.00014719,2]
[400008615,1767016240705,-500.0,0.00014719,2]
[400008616,1767016240715,-487.53,0.00014757,2]
[400008617,1767016240724,-487.53,0.00015031,2]
[400008618,1767016240734,-500.0,0.00015121,2]
[400008619,1767016240744,-5985.12245235,0.00015153,2]
[400008620,1767016240753,-150.0,0.00015288,2]
[400008621,1767016240763,-150.0,0.00015288,2]
[400008622,1767016240772,-150.0,0.00015288,2]
[400008623,1767016240781,-150.19477692,0.00015288,2]
[400008624,1767016240791,-150.0,0.00015288,2]
[400008625,1767016240803,-150.0,0.00015288,2]
[400008626,1767016240813,-150.0,0.00015288,2]
[400008627,1767016240829,-150.0,0.00015288,2]
[400008628,1767016240843,-150.0,0.00015288,2]
[400008629,1767016240852,-150.0,0.00015288,2]
[400008630,1767016240862,-150.40716207,0.00015288,2]
[400008631,1767016240872,-150.0,0.00015288,2]
[400008632,1767016240881,-150.0,0.00015288,2]
[400008633,1767016240890,-150.0,0.00015288,2]
[400008634,1767016240900,-487.53,0.00015305,2]
[400008635,1767016240909,-999.0,0.00015337,3]
[400008636,1767016240919,-200.0,0.00015415,2]
[400008637,1767016240929,-487.54,0.00015579,2]
[400008638,1767016240938,-151.0,0.00015596,2]
[400008639,1767016240948,-151.0,0.00015596,2]
[400008640,1767016240958,-150.0,0.00015627,2]
[400008641,1767016240968,-5985.12245235,0.00015822,2]
[400008642,1767016240977,-150.0,0.00015854,2]
[400008643,1767016240987,-150.0,0.00015854,2]
[400008644,1767016240996,-150.0,0.00015967,2]
[400008645,1767016241006,-500.0,0.00015973,2]
[400008646,1767016241015,-500.0,0.00015973,2]
[400008647,1767016241025,-16167.55,0.00016012,2]
[400008648,1767016241034,-847.0,0.00016082,2]
[400008649,1767016241043,-847.0,0.00016109,2]
[400008650,1767016241053,-250.34,0.00016136,2]
[400008651,1767016241063,-847.0,0.00016137,2]
[400008652,1767016241072,-150.0,0.00016137,2]
[400008653,1767016241082,-150.0,0.00016137,2]
[400008654,1767016241092,-847.0,0.00016164,2]
[400008655,1767016241102,-847.0,0.00016192,2]
[400008656,1767016241111,-847.0,0.00016219,2]
[400008657,1767016241120,-847.0,0.00016246,2]
[400008658,1767016241129,-847.0,0.00016274,2]
[400008659,1767016241138,-847.0,0.00016301,2]
[400008660,1767016241147,-150.0,0.00016307,2]
[400008661,1767016241157,-847.0,0.00016329,2]
[400008662,1767016241166,-847.0,0.00016356,2]
[400008663,1767016241175,-847.0,0.00016383,2]
[400008664,1767016241185,-200.0,0.00016397,2]
[400008665,1767016241194,-847.0,0.00016411,2]
[400008666,1767016241206,-150.0,0.0001642,2]
[400008667,1767016241216,-150.0,0.0001642,2]
[400008668,1767016241226,-150.0,0.00016438,2]
[400008669,1767016241235,-500.0,0.00016438,2]
[400008670,1767016241244,-562.16173837,0.00016438,2]
[400008671,1767016241254,-847.0,0.00016438,2]
[400008672,1767016241263,-150.0,0.00016465,2]
[400008673,1767016241273,-847.0,0.00016466,2]
[400008674,1767016241282,-5985.12245235,0.0001649,2]
[400008675,1767016241291,-200.0,0.00016493,2]
[400008676,1767016241300,-847.0,0.00016493,2]
[400008677,1767016241309,-847.0,0.0001652,2]
[400008678,1767016241320,-1000.0,0.00016521,2]
[400008679,1767016241331,-847.0,0.00016548,2]
[400008680,1767016241342,-847.0,0.00016575,2]
[400008681,1767016241352,-847.0,0.00016603,2]
[400008682,1767016241361,-847.0,0.0001663,2]
[400008683,1767016241371,-150.0,0.00016647,2]
[400008684,1767016241380,-847.0,0.00016657,2]
[400008685,1767016241389,-847.0,0.00016685,2]
[400008686,1767016241399,-869.89842056,0.00016712,2]
[400008687,1767016241409,-202.0510682,0.00016737,2]
[400008688,1767016241419,-373.6485393,0.000169,2]
[400008689,1767016241429,-1349.93606665,0.000169,2]
[400008690,1767016241439,-178.99010621,0.000169,2]
[400008691,1767016241450,-1502.58689708,0.000169,2]
[400008692,1767016241461,-179.69793141,0.000169,2]
[400008693,1767016241470,-150.00000001,0.00016986,2]
[400008694,1767016241481,-150.0,0.00016986,2]
[400008695,1767016241491,-150.0,0.00016986,2]
[400008696,1767016241502,-150.0,0.00016986,2]
[400008697,1767016241512,-150.0,0.00016986,2]
[400008698,1767016241521,-150.0,0.00016986,2]
[400008699,1767016241531,-70523.6447245,0.00016997,2]
[400008700,1767016241541,-778.8870099,0.00016997,2]
[400008701,1767016241550,-176.341094,0.00016997,2]
[400008702,1767016241560,-790.3059541,0.00016997,2]
[400008703,1767016241569,-3408.2992384,0.00016997,2]
[400008704,1767016241582,-300.0,0.00016999,2]
[400008705,1767016241591,-666.0,0.00016999,2]
[400008706,1767016241601,-150.0,0.00016999,2]
[400008707,1767016241612,-46732.23142587,0.00017,2]
[400008708,1767016241622,-1145712.63730259,0.00017,2]
[400008727,1767016244063,-166.66,0.0001482,2]
[400008728,1767016244074,-166.66,0.00015126,2]
[400008729,1767016244085,-166.66,0.00015431,2]
[400008730,1767016244095,-100.3786024,0.00015737,2]
[400008731,1767016244179,-66.2813976,0.00015737,2]
[400008732,1767016244188,-166.66,0.00016042,2]
[400008733,1767016244198,-58.32207457,0.00017,2]
[400008734,1767016244209,-522.07369526,0.00017,2]
[400008735,1767016245263,-1097.0,0.00017,2]
[400008738,1767016246048,-257.42503718,0.00017,2]
[400008739,1767016246220,-2809.80068101,0.00017,2]
[400008740,1767016246231,-524.162615,0.00017,2]
[400008741,1767016246336,-151.0,0.00015742,2]
[400008743,1767016246345,-199.28624642,0.00017,2]
[400008745,1767016246356,-96086.88754419,0.00017,2]
[400008747,1767016246368,-657.65642569,0.00017,2]
[400008765,1767016562311,10000.0,0.00030137,120]
[400008770,1767016585609,1131.89,0.00030137,120]
[400008784,1767016847332,10000.0,0.00030137,120]
[400008785,1767016890693,150.0,0.00015901,120]
[400008799,1767017319522,238.0,0.0003,120]
[400008802,1767017432158,-443.88,0.00013699,2]
[400008803,1767017432169,-500.0,0.00014573,2]
[400008804,1767017432180,-1000.0,0.00015121,2]
[400008805,1767017432192,-300.0,0.00015662,2]
[400008806,1767017432203,-300.0,0.00015662,2]
[400008807,1767017432217,-15049.62,0.00015663,2]
[400008808,1767017432229,-1000.0,0.00015694,2]
[400008809,1767017432240,-312.92,0.000157,2]
[400008810,1767017432251,-307.33500058,0.00015734,2]
[400008811,1767017432280,-1292.14499942,0.00015734,2]
[400008812,1767017432291,-4058.85500058,0.00015825,2]
[400008813,1767017432385,-520.90220434,0.00015825,2]
[400008814,1767017432398,-3644.00137046,0.00015825,2]
[400008815,1767017432411,-866.29142462,0.00015825,2]
[400008816,1767017432421,-3239.20125394,0.00015865,2]
[400008817,1767017432437,-1143.97874606,0.00015865,2]
[400008818,1767017432448,-38.81398871,0.00015901,2]
[400008819,1767017432474,-111.18601129,0.00015901,2]
[400008820,1767017432485,-150.0,0.00015968,2]
[400008821,1767017432494,-150.0,0.00015973,2]
[400008822,1767017432504,-500.0,0.00015973,2]
[400008825,1767017432514,-505.61185396,0.00016341,2]
[400008826,1767017432524,-500.0,0.00016341,2]
[400008827,1767017432534,-1227.32708868,0.00016342,2]
[400008828,1767017432547,-8574.07364616,0.00016342,2]
[400008836,1767017438249,-3665.99999952,0.00016342,2]
[400008837,1767017438266,-373.89027291,0.00016342,2]
[400008838,1767017438299,-1276.52476537,0.00016342,2]
[400008839,1767017438360,-7854.76067076,0.00016342,2]
[400008840,1767017438375,-2978.1060531,0.00016342,2]
[400008841,1767017438390,-6035.72876863,0.00016342,2]
[400008842,1767017438403,-3545.62120439,0.00016342,2]
[400008843,1767017438416,-568.6437948,0.00016342,2]
[400008844,1767017438438,-312.44879947,0.00016342,2]
[400008899,1767017440243,-2844.23565072,0.00016342,2]
[400008900,1767017440358,-1405.08006027,0.00016342,2]
[400008901,1767017440372,-873.50683142,0.00016342,2]
[400008902,1767017440384,-523.07502719,0.00016342,2]
[400008903,1767017440397,-279.7446,0.00016342,2]
[400008904,1767017440525,-151.0,0.00016312,2]
[400008905,1767017440537,-957661.23276661,0.00016342,2]
[400008906,1767017440547,-500.0,0.00016438,2]
[400008907,1767017440558,-230.98913896,0.00016438,2]
[400008908,1767017440568,-500.0,0.00016438,2]
[400008909,1767017440580,-166.66,0.00016442,2]
[400008910,1767017440591,-150.99,0.00016442,2]
[400008911,1767017440602,-298.64,0.00016442,2]
[400008912,1767017440612,-9999.99,0.00016442,2]
[400008913,1767017440622,-150.0,0.00016475,2]
[400008914,1767017440633,-150.0,0.00016475,2]
[400008915,1767017440645,-500.0,0.00016475,2]
[400008916,1767017440656,-150.0,0.00016475,2]
[400008917,1767017440667,-150.53756938,0.00016475,2]
[400008918,1767017440677,-150.3024691,0.00016475,2]
[400008919,1767017440687,-150.0,0.00016475,2]
[400008921,1767017440697,-150.32339605,0.00016475,2]
[400008922,1767017440707,-150.0,0.00016475,2]
[400008923,1767017440717,-150.05940282,0.00016475,2]
[400008924,1767017440727,-173.82331506,0.00016475,2]
[400008925,1767017440737,-150.0,0.00016502,2]
[400008926,1767017440747,-151.42325421,0.00016502,2]
[400008927,1767017440757,-502.82209839,0.00016502,2]
[400008928,1767017440767,-150.33162922,0.00016502,2]
[400008929,1767017440777,-150.0,0.00016502,2]
[400008930,1767017440788,-150.0,0.00016502,2]
[400008931,1767017440799,-1000.0,0.00016521,2]
[400008933,1767017440809,-6280.55,0.00016521,2]
[400008935,1767017440819,-150.0,0.0001653,2]
[400008936,1767017440829,-202.52909335,0.0001653,2]
[400008937,1767017440838,-200.77857799,0.0001653,2]
[400008938,1767017440848,-150.0,0.00016557,2]
[400008939,1767017440858,-150.0,0.00016585,2]
[400008940,1767017440869,-250.0,0.00016612,2]
[400008941,1767017440879,-150.0,0.00016612,2]
[400008942,1767017440889,-150.0,0.00016612,2]
[400008943,1767017440901,-150.0,0.00016612,2]
[400008944,1767017440911,-150.0,0.00016612,2]
[400008945,1767017440921,-847.0,0.00016612,2]
[400008947,1767017440931,-200.0,0.00016612,2]
[400008948,1767017440941,-151.8978061,0.00016612,2]
[400008949,1767017440951,-150.0,0.00016612,2]
[400008950,1767017440961,-150.0,0.00016612,2]
[400008951,1767017440972,-500.0,0.00016612,2]
[400008952,1767017440983,-150.0,0.00016612,2]
[400008953,1767017440992,-150.0,0.00016612,2]
[400008954,1767017441003,-150.0,0.00016612,2]
[400008955,1767017441012,-150.0,0.00016612,2]
[400008956,1767017441023,-500.0,0.00016612,2]
[400008957,1767017441033,-150.0,0.00016639,2]
[400008958,1767017441043,-150.0,0.00016639,2]
[400008959,1767017441054,-150.0,0.00016639,2]
[400008960,1767017441064,-200.0,0.00016639,2]
[400008961,1767017441074,-847.0,0.00016639,2]
[400008962,1767017441084,-150.0,0.00016639,2]
[400008963,1767017441094,-500.0,0.00016639,2]
[400008964,1767017441104,-150.0,0.00016639,2]
[400008965,1767017441114,-200.0,0.00016639,2]
[400008966,1767017441124,-150.0,0.00016667,2]
[400008967,1767017441134,-296.21634986,0.00016667,2]
[400008968,1767017441144,-150.0,0.00016667,2]
[400008969,1767017441154,-847.0,0.00016667,2]
[400008970,1767017441163,-200.0,0.00016667,2]
[400008971,1767017441173,-500.0,0.00016667,2]
[400008972,1767017441183,-150.0,0.00016667,2]
[400008973,1767017441193,-150.0,0.00016694,2]
[400008974,1767017441203,-218.90461355,0.00016694,2]
[400008975,1767017441212,-847.0,0.00016694,2]
[400008976,1767017441223,-500.0,0.00016694,2]
[400008977,1767017441233,-150.0,0.00016694,2]
[400008978,1767017441244,-150.0,0.00016716,2]
[400008979,1767017441254,-500.0,0.00016716,2]
[400008980,1767017441264,-500.0,0.00016716,2]
[400008981,1767017441274,-500.0,0.00016716,2]
[400008982,1767017441284,-152.10490824,0.00016716,2]
[400008983,1767017441294,-500.0,0.00016716,2]
[400008984,1767017441304,-157.8979539,0.00016716,2]
[400008985,1767017441315,-150.0,0.00016716,2]
[400008986,1767017441329,-151.17389977,0.00016716,2]
[400008987,1767017441338,-390.6,0.00016716,2]
[400008988,1767017441348,-847.0,0.00016722,2]
[400008989,1767017441358,-500.0,0.00016722,2]
[400008990,1767017441370,-150.0,0.00016743,2]
[400008991,1767017441379,-500.0,0.00016743,2]
[400008992,1767017441389,-500.0,0.00016743,2]
[400008993,1767017441400,-500.0,0.00016743,2]
[400008994,1767017441410,-500.0,0.00016743,2]
[400008995,1767017441420,-150.0,0.00016743,2]
[400008996,1767017441431,-847.0,0.00016749,2]
[400008997,1767017441442,-500.0,0.00016749,2]
[400008998,1767017441453,-156.38143809,0.00016771,2]
[400008999,1767017441466,-305.89905131,0.00016771,2]
[400009000,1767017441476,-504.56733337,0.00016771,2]
[400009001,1767017441486,-500.0,0.00016771,2]
[400009002,1767017441497,-500.0,0.00016771,2]
[400009003,1767017441508,-202.57672369,0.00016771,2]
[400009004,1767017441518,-847.0,0.00016776,2]
[400009005,1767017441528,-500.0,0.00016776,2]
[400009006,1767017441538,-2500.0,0.00016796,2]
[400009007,1767017441548,-2742.0761,0.00016796,2]
[400009008,1767017441558,-7224.68189272,0.00016797,2]
[400009009,1767017441568,-154.41523631,0.00016798,2]
[400009010,1767017441578,-500.0,0.00016798,2]
[400009011,1767017441588,-1019.546604,0.000168,2]
[400009012,1767017441599,-8641.15569627,0.000168,2]
[400009013,1767017441609,-401.1377908,0.000168,2]
[400009014,1767017441618,-847.0,0.00016804,2]
[400009015,1767017441628,-500.0,0.00016804,2]
[400009016,1767017441638,-203.06386419,0.0001681,2]
[400009017,1767017441648,-500.0,0.00016816,2]
[400009018,1767017441658,-500.0,0.00016826,2]
[400009019,1767017441668,-847.0,0.00016831,2]
[400009020,1767017441677,-500.0,0.00016831,2]
[400009021,1767017441687,-795.492,0.00016851,2]
[400009022,1767017441697,-500.0,0.00016853,2]
[400009023,1767017441707,-244.0,0.00016857,2]
[400009024,1767017441717,-847.0,0.00016859,2]
[400009025,1767017441726,-500.0,0.00016859,2]
[400009026,1767017441736,-256.4,0.00016867,2]
[400009027,1767017441746,-500.0,0.0001688,2]
[400009028,1767017441756,-847.0,0.00016886,2]
[400009029,1767017441766,-500.0,0.00016886,2]
[400009030,1767017441776,-201.50801092,0.00016895,2]
[400009031,1767017441787,-478.80925099,0.000169,2]
[400009032,1767017441797,-1568.63934894,0.000169,2]
[400009033,1767017441807,-500.0,0.000169,2]
[400009034,1767017441817,-500.0,0.000169,2]
[400009035,1767017441827,-500.0,0.000169,2]
[400009036,1767017441836,-500.0,0.000169,2]
[400009037,1767017441847,-500.0,0.000169,2]
[400009038,1767017441856,-500.0,0.000169,2]
[400009039,1767017441866,-500.0,0.000169,2]
[400009040,1767017441876,-500.0,0.000169,2]
[400009041,1767017441886,-500.0,0.000169,2]
[400009042,1767017441896,-500.0,0.000169,2]
[400009043,1767017441906,-500.0,0.000169,2]
[400009044,1767017441916,-500.0,0.000169,2]
[400009045,1767017441926,-500.0,0.000169,2]
[400009046,1767017441936,-500.0,0.000169,2]
[400009047,1767017441947,-198.10586609,0.000169,2]
[400009048,1767017441958,-554.97447821,0.00016908,2]
[400009049,1767017441968,-847.0,0.00016913,2]
[400009050,1767017441979,-500.0,0.00016913,2]
[400009051,1767017441989,-847.0,0.00016941,2]
[400009052,1767017441999,-500.0,0.00016941,2]
[400009053,1767017442339,-847.0,0.00016968,2]
[400009054,1767017442356,-500.0,0.00016968,2]
[400009055,1767017442371,-166.66,0.00016985,2]
[400009056,1767017442382,-390.6,0.0001699,2]
[400009057,1767017442393,-532.14981469,0.00016995,2]
[400009058,1767017442403,-191.98127916,0.00016995,2]
[400009059,1767017442413,-847.0,0.00016996,2]
[400009060,1767017442423,-500.0,0.00016996,2]
[400009061,1767017442432,-21698.0499322,0.00016996,2]
[400009062,1767017442442,-5785.2402423,0.00016996,2]
[400009063,1767017442452,-55403.1661641,0.00016996,2]
[400009064,1767017442461,-3436.9448292,0.00016996,2]
[400009065,1767017442472,-89122.66788,0.00016996,2]
[400009066,1767017442481,-15120.4785605,0.00016996,2]
[400009067,1767017442490,-10299.3026265,0.00016996,2]
[400009068,1767017442500,-1177.58596831,0.00016999,5]
[400009069,1767017442509,-1177.58596831,0.00016999,5]
[400009070,1767017442519,-1457009.81539116,0.00017,2]
[400009071,1767017442529,-7330.36001906,0.00017,2]
[400009072,1767017442539,-7040.59966986,0.00017,2]
[400009073,1767017442548,-250.0,0.00017,2]
[400009074,1767017442558,-2000.0,0.00017,2]
[400009075,1767017442567,-200.0,0.00017,2]
[400009076,1767017442577,-2000.0,0.00017,2]
[400009077,1767017442586,-266.9447586,0.00017,2]
[400009078,1767017442595,-283.0,0.00017007,2]
[400009079,1767017442605,-847.0,0.00017023,2]
[400009080,1767017442614,-500.0,0.00017023,2]
[400009081,1767017442624,-847.0,0.0001705,2]
[400009082,1767017442633,-500.0,0.0001705,2]
[400009083,1767017442643,-1500.0,0.00017068,2]
[400009084,1767017442652,-378.0,0.0001707,2]
[400009085,1767017442661,-378.0,0.00017073,2]
[400009086,1767017442671,-847.0,0.00017078,2]
[400009087,1767017442681,-500.0,0.00017078,2]
[400009088,1767017442690,-847.0,0.00017105,2]
[400009089,1767017442700,-394.0,0.00017105,2]
[400009090,1767017442709,-378.0,0.00017117,2]
[400009091,1767017442718,-420.0,0.0001713,2]
[400009092,1767017442728,-847.0,0.00017133,2]
[400009093,1767017442737,-847.0,0.0001716,2]
[400009094,1767017442747,-378.0,0.00017166,2]
[400009095,1767017442758,-200.0,0.0001717,2]
[400009096,1767017442768,-847.0,0.00017187,2]
[400009097,1767017442779,-378.0,0.000172,2]
[400009098,1767017442788,-378.0,0.00017214,2]
[400009099,1767017442799,-847.0,0.00017215,2]
[400009100,1767017442810,-869.89842056,0.00017242,2]
[400009101,1767017442820,-390.6,0.00017264,2]
[400009102,1767017442830,-193.7,0.00017347,2]
[400009103,1767017442839,-378.0,0.00017348,2]
[400009104,1767017442849,-1177.58596832,0.00017458,5]
[400009105,1767017442858,-378.0,0.00017486,2]
[400009106,1767017442870,-378.0,0.000175,2]
[400009107,1767017442879,-166.66,0.00017527,2]
[400009108,1767017442888,-390.6,0.00017538,2]
[400009109,1767017442897,-173.3376619,0.00017616,2]
[400009110,1767017442906,-1000.0,0.00017656,2]
[400009111,1767017442916,-378.0,0.00017664,2]
[400009112,1767017442925,-1599.48,0.000177,2]
[400009113,1767017442934,-378.0,0.00017732,2]